Cogmind - Beta 14 @@@ ROGUE MODE // 2024.12.31 @ 17:12:39 Player: jumpy Result: Destroyed by G-47 Trooper with Particle Gun Performance ------------- Evolutions (2) 1000 Regions Visited (5) 1000 Robots Destroyed (3) 15 Value Destroyed (137) 137 Prototype IDs (2) 40 Alien Tech Used (0) 0 Bonus (470) 470 TOTAL SCORE: 2662 Bonus ------- Pacifist 470 Cogmind --------- Core Integrity 0/550 Matter 115/300 Energy 99/100 System Corruption 2% Temperature Cool (18) Movement Core (50) Location -8/Materials Parts ------- > --- POWER (1) -------- (None) > --- PROPULSION (4) --- (None) > --- UTILITY (4) ------ (None) > --- WEAPON (2) ------- (None) > --- INVENTORY (5) ---- (None) Peak State ------------ > --- POWER ------------ Cooled Ion Engine > --- PROPULSION ------- Flight Unit Flight Unit > --- UTILITY ---------- Small Storage Unit Core Shielding > --- WEAPON ----------- Advanced EMP Blaster > --- INVENTORY -------- Grenade Launcher [Rating: 11] Favorites ----------- Power Ion Engine Engine Ion Engine Propulsion Aluminum Leg Leg Aluminum Leg Flight Unit Flight Unit Utility Small Storage Unit Storage Small Storage Unit Protection Core Shielding Weapon Assault Rifle Energy Gun Medium Laser Ballistic Gun Assault Rifle Launcher Advanced EMP Blaster Build | -11 -10 -10 -9 -9 -8 ------- Run | Yrd Mat Min Mat Min Mat Slots Evolved 4 | . . . 2 . 2 Power . | . . . . . . Propulsion 2 | . . . 2 . . Utility 2 | . . . . . 2 Weapon . | . . . . . . Parts Attached 20 | 7 4 . 4 . 5 Power 2 | 1 . . . . 1 Engine 2 | 1 . . . . 1 Core . | . . . . . . Reactor . | . . . . . . Propulsion 8 | 2 4 . 2 . . Treads . | . . . . . . Leg 4 | 2 2 . . . . Wheel . | . . . . . . Hover . | . . . . . . Flight 4 | . 2 . 2 . . Utility 2 | 1 . . 1 . . Device . | . . . . . . Storage 1 | 1 . . . . . Processor . | . . . . . . Hackware . | . . . . . . Protection 1 | . . . 1 . . Artifact . | . . . . . . Weapon 8 | 3 . . 1 . 4 Energy Gun 1 | 1 . . . . . Energy Cannon . | . . . . . . Ballistic Gun 4 | 2 . . 1 . 1 Ballistic Cannon . | . . . . . . Launcher 3 | . . . . . 3 Special Weapon . | . . . . . . Impact Weapon . | . . . . . . Slashing Weapon . | . . . . . . Piercing Weapon . | . . . . . . Special Melee Weapon . | . . . . . . Unidentified Prototypes 2 | . . . . . 2 Parts Lost 12 | . . 4 . . 8 Power 2 | . . 1 . . 1 Propulsion 4 | . . 2 . . 2 Utility 2 | . . . . . 2 Weapon 4 | . . 1 . . 3 Highest Loss Streak 4 | . . 4 . . 4 To Critical Strikes . | . . . . . . Average Slot Usage (%) 57 | . 82 79 52 55 30 Engine 7 | . 14 12 . . 3 Leg 11 | . 25 24 . . . Flight 6 | . . . 22 22 7 Storage 11 | . 14 14 11 11 8 Protection 3 | . . . 8 11 5 Energy Gun 6 | . 14 14 . . . Ballistic Gun 9 | . 14 14 11 11 4 Peak Build Rating 11 | 6 6 6 5 5 11 Average Rating 5 | 3 5 5 4 5 4 On Entrance 4 | . 6 6 2 5 5 Naked Turns 3 | . . . . . 3 Heaviest Build 20 | 14 14 14 8 8 20 Greatest Support 20 | 20 20 20 8 8 8 Greatest Overweight (x) 4 | 2 4 2 . . 4 Average Overweight (x) . | . . . . . . Largest Inventory Capacity 8 | 8 8 8 8 8 8 Average Capacity 7 | 6 8 8 8 8 7 Most Carried 6 | 3 6 4 4 1 2 Average Carried 1 | 1 3 4 1 1 . Final Capacity 8 | 8 8 8 8 8 5 Final Carried 4 | 1 4 4 1 1 . Class Distribution -------------------- 100% | Mutant Dominant Class ---------------- Mutant | -10/Materials Mutant | -10/Mines Mutant | -9/Materials Mutant | -9/Mines Mutant | -8/Materials Resources | -11 -10 -10 -9 -9 -8 ----------- Run | Yrd Mat Min Mat Min Mat Matter Collected 307 | 232 . 45 . . 30 Remotely . | . . . . . . Salvage Created 80 | . . . . . 80 Parts 2 | . . . . . 2 Haulers Intercepted . | . . . . . . Recyclers Shooed . | . . . . . . Parts Field Recycled . | . . . . . . Retrieved Matter . | . . . . . . Parts Self-Destructed . | . . . . . . Prevented . | . . . . . . Kills | -11 -10 -10 -9 -9 -8 ------- Run | Yrd Mat Min Mat Min Mat Combat Hostiles Destroyed 3 | . . . . . 3 Guns 1 | . . . . . 1 AOE 2 | . . . . . 2 Classes Destroyed 2 | . . . . . 2 Grunt 1 | . . . . . 1 Sentry 2 | . . . . . 2 Best Kill Streak 1 | . . . . . 1 Combat Bots Only 1 | . . . . . 1 Max Kills in Single Turn 1 | . . . . . 1 Gunslinging . | . . . . . . Exploded 1 | . . . . . 1 Melee . | . . . . . . Uniques/NPCs Destroyed . | . . . . . . Combat | -11 -10 -10 -9 -9 -8 -------- Run | Yrd Mat Min Mat Min Mat Hostile Shots Fired 161 | . 18 43 . . 100 Missed 51 | . 9 7 . . 35 Damage Taken 1760 | . 94 469 . . 1197 Core 690 | . 36 95 . . 559 Absorbed by Shields . | . . . . . . Redirected to Shielding 51 | . . . . . 51 Core Remaining (%) 82 | 100 . 47 . 100 . Volleys Fired 28 | . . 6 . . 22 Largest 2 | . . 2 . . 1 Hottest 70 | . . 70 . . 36 Shots Fired 34 | . . 12 . . 22 Gun 23 | . . 12 . . 11 Cannon . | . . . . . . Launcher 11 | . . . . . 11 Special . | . . . . . . Kinetic 17 | . . 6 . . 11 Thermal 6 | . . 6 . . . Explosive 7 | . . . . . 7 Electromagnetic 4 | . . . . . 4 Robot Hit Streak 8 | . . 6 . . 8 Robot Miss Streak 4 | . . 1 . . 4 Penetration Max . | . . . . . . Secondary Targets . | . . . . . . Shots Hit Robots 22 | . . 10 . . 12 Core Hits 14 | . . 2 . . 12 Critical Kills . | . . . . . . Critical Parts Destroyed . | . . . . . . Critical Strikes . | . . . . . . Melee Attacks . | . . . . . . Impact . | . . . . . . Slashing . | . . . . . . Piercing . | . . . . . . Sneak Attacks . | . . . . . . Combat Hostiles . | . . . . . . Follow-up Attacks . | . . . . . . Damage Inflicted 673 | . . 123 . . 550 Guns 227 | . . 119 . . 108 Cannons . | . . . . . . Explosions 442 | . . . . . 442 Melee . | . . . . . . Ramming 4 | . . 4 . . . Kinetic 152 | . . 44 . . 108 Thermal 124 | . . 75 . . 49 Explosive 124 | . . . . . 124 Electromagnetic 269 | . . . . . 269 Impact . | . . . . . . Slashing . | . . . . . . Piercing . | . . . . . . Highest Corruption 2 | . . . . . 2 Average Corruption 1 | . . . . . 1 Corruption Purged . | . . . . . . Corruption Blocked . | . . . . . . Effects 1 | . . . . . 1 Matter Fused 1 | . . . . . 1 Overload Shots . | . . . . . . Overflow Damage 8 | . . . . . 8 Projectiles . | . . . . . . Explosions 8 | . . . . . 8 Melee . | . . . . . . Knockbacks . | . . . . . . Impact . | . . . . . . Kinetic . | . . . . . . Secondary . | . . . . . . Self-Inflicted Damage 121 | . . . . . 121 Shots 5 | . . . . . 5 Rammed 1 | . . . . . 1 Targets Rammed 3 | . . 2 . . 1 Kicked 2 | . . 2 . . . Crushed . | . . . . . . Highest Temperature 253 | . . 253 . . 11 Average Temperature 133 | . . 150 . . 6 Received Heat Transfer 657 | . . 261 . . 396 Effects 1 | . . 1 . . . Interference 1 | . . 1 . . . Siege Activations . | . . . . . . Robots Corrupted . | . . . . . . Combat Hostiles . | . . . . . . Parts Fried . | . . . . . . Impact Corruptions . | . . . . . . Robots Melted . | . . . . . . Combat Hostiles . | . . . . . . Parts Melted . | . . . . . . Heat Transferred 272 | . . 222 . . 50 Parts Sabotaged . | . . . . . . Parts Stolen . | . . . . . . Parts Stripped . | . . . . . . Power Chain Reactions 1 | . . . . . 1 Alert | -11 -10 -10 -9 -9 -8 ------- Run | Yrd Mat Min Mat Min Mat Peak Influence 95 | . 15 20 21 7 95 Initial 7 | . . 5 . 7 2 Average 14 | . 1 11 1 7 35 Maximum Alert Level . | . . . . . . Low Security (%) 100 | 100 100 100 100 100 100 Level 1 . | . . . . . . Level 2 . | . . . . . . Level 3 . | . . . . . . Level 4 . | . . . . . . Level 5 . | . . . . . . High Security . | . . . . . . Max Security . | . . . . . . Squads Dispatched 3 | . 1 . . . 2 Investigation 1 | . 1 . . . . Extermination . | . . . . . . Reinforcement . | . . . . . . Assault . | . . . . . . Garrison 2 | . . . . . 2 Intercept . | . . . . . . Searches Triggered . | . . . . . . Construction Impeded . | . . . . . . Haulers Reinforced . | . . . . . . Active Scanning Responses . | . . . . . . Cargo Convoy Interrupts . | . . . . . . Stealth | -11 -10 -10 -9 -9 -8 --------- Run | Yrd Mat Min Mat Min Mat Distress Signals 3 | . 1 . 1 . 1 Communications Jammed . | . . . . . . Distress Signals . | . . . . . . Times Spotted 24 | . 4 4 3 . 13 Peak Tracking Total 6 | . 4 4 . . 6 Tactical Retreats 2 | . . . . . 2 Traps | -11 -10 -10 -9 -9 -8 ------- Run | Yrd Mat Min Mat Min Mat Traps Triggered 2 | . 2 . . . . Indirectly . | . . . . . . Trap Hack Attempts . | . . . . . . Triggered . | . . . . . . Disarmed . | . . . . . . Reprogrammed . | . . . . . . Reused . | . . . . . . Traps Extracted . | . . . . . . Installed . | . . . . . . Triggered . | . . . . . . Machines | -11 -10 -10 -9 -9 -8 ---------- Run | Yrd Mat Min Mat Min Mat Machines Disabled . | . . . . . . Max in Single Turn . | . . . . . . Machines Repaired . | . . . . . . Machines Dismantled . | . . . . . . Machines Sabotaged . | . . . . . . Overloaded Fab Kills . | . . . . . . Hacking | -11 -10 -10 -9 -9 -8 --------- Run | Yrd Mat Min Mat Min Mat Machines Accessed 2 | . 1 . 1 . . Terminals 2 | . 1 . 1 . . Fabricators . | . . . . . . Repair Stations . | . . . . . . Recycling Units . | . . . . . . Scanalyzers . | . . . . . . Garrison Access . | . . . . . . Total Hacks 5 | . 2 . 3 . . Successful 3 | . . . 3 . . Failed 2 | . 2 . . . . Catastrophic . | . . . . . . Database Lockouts . | . . . . . . Manual . | . . . . . . Terminals 5 | . 2 . 3 . . Fabricators . | . . . . . . Repair Stations . | . . . . . . Recycling Units . | . . . . . . Scanalyzers . | . . . . . . Garrison Access . | . . . . . . Terminal Hacks 3 | . . . 3 . . Record 1 | . . . 1 . . Hauler Manifests 1 | . . . 1 . . Zone Layout 1 | . . . 1 . . Fabricator Hacks . | . . . . . . Repair Station Hacks . | . . . . . . Recycling Unit Hacks . | . . . . . . Scanalyzer . | . . . . . . Garrison Access Hacks . | . . . . . . Unauthorized Hacks . | . . . . . . Terminals . | . . . . . . Fabricators . | . . . . . . Repair Stations . | . . . . . . Recycling Units . | . . . . . . Scanalyzers . | . . . . . . Garrison Access . | . . . . . . Data Cores Recovered . | . . . . . . Used . | . . . . . . Hacking Detections 1 | . 1 . . . . Full Trace Events 1 | . 1 . . . . Feedback Events . | . . . . . . Feedback Blocked . | . . . . . . Robot Schematics Acquired . | . . . . . . Robots Built . | . . . . . . Authchips . | . . . . . . Time . | . . . . . . Total Robot Build Rating . | . . . . . . Part Schematics Acquired . | . . . . . . Parts Built . | . . . . . . Authchips . | . . . . . . Time . | . . . . . . Total Part Build Rating . | . . . . . . Parts Repaired . | . . . . . . Time . | . . . . . . Parts Recycled . | . . . . . . Recycled Matter . | . . . . . . Retrieved Matter . | . . . . . . Retrieved Components . | . . . . . . Parts Scanalyzed . | . . . . . . Part Schematics Acquired . | . . . . . . Parts Damaged . | . . . . . . Bothacking | -11 -10 -10 -9 -9 -8 ------------ Run | Yrd Mat Min Mat Min Mat Used RIF Installer . | . . . . . . Robots Hacked . | . . . . . . Non-combat . | . . . . . . Combat . | . . . . . . Robot Hacks Applied . | . . . . . . Relay Couplers Released . | . . . . . . Fabnet Peak Effective % . | . . . . . . Robots Rewired . | . . . . . . Allies Hacked . | . . . . . . Hacks Repelled . | . . . . . . Allies | -11 -10 -10 -9 -9 -8 -------- Run | Yrd Mat Min Mat Min Mat Total Allies . | . . . . . . Largest Group . | . . . . . . Highest-Rated Group . | . . . . . . Highest-Rated Ally . | . . . . . . Total Orders . | . . . . . . Ally Attacks . | . . . . . . Total Damage . | . . . . . . Kills . | . . . . . . Allies Corrupted . | . . . . . . Allies Melted . | . . . . . . Intel | -11 -10 -10 -9 -9 -8 ------- Run | Yrd Mat Min Mat Min Mat Robot Analysis Total . | . . . . . . Derelict Logs Recovered 2 | . . 1 . 1 . Drone Launches . | . . . . . . Drone Recoveries . | . . . . . . Exploration | -11 -10 -10 -9 -9 -8 ------------- Run | Yrd Mat Min Mat Min Mat Turns Passed 701 | 93 194 73 44 62 235 Spaces Moved 660 | 75 150 41 71 159 164 Core 137 | 39 2 4 . . 92 Treads . | . . . . . . Legs 221 | 36 148 37 . . . Wheels . | . . . . . . Hover . | . . . . . . Flight 302 | . . . 71 159 72 Fastest Speed 37 | 50 120 120 37 37 37 Average Speed 84 | 108 121 122 37 37 97 Slowest Speed 360 | 150 250 150 37 37 360 Overloaded Moves . | . . . . . . Propulsion Burnouts . | . . . . . . Robots Hopped . | . . . . . . Cave-ins Triggered . | . . . . . . Exploration Rate (%) 18 | 6 26 11 8 43 15 Regions Visited 5 Branch Regions 2 Pre-discovered Areas . | . . . . . . Known Exits Taken . | . . . . . . Unknown Exits Taken 5 | 1 1 1 1 1 . Scrap Searched 1 | . . . . 1 . Spaces Dug . | . . . . . . Terrain Destroyed 41 | . . . . . 41 Melee . | . . . . . . Projectile . | . . . . . . AOE 41 | . . . . . 41 Terrain Rammed . | . . . . . . Walls Destroyed . | . . . . . . Machines Disabled . | . . . . . . Actions | -11 -10 -10 -9 -9 -8 --------- Run | Yrd Mat Min Mat Min Mat Total 764 | 84 164 51 88 161 216 Wait 39 | . . 3 12 3 21 Move 655 | 74 149 40 70 158 164 Hop . | . . . . . . Pick Up 11 | 3 5 . 1 . 2 Fast Attach 5 | 4 . . . . 1 Attach 14 | 2 4 . 4 . 4 Detach 5 | . 4 . . . 1 Swap 1 | 1 . . . . . Drop 3 | . 2 . 1 . . Fire 28 | . . 6 . . 22 Melee . | . . . . . . Ram 1 | . . . . . 1 Kick 2 | . . 2 . . . Crush . | . . . . . . Escape Stasis . | . . . . . . Rewire . | . . . . . . Trap . | . . . . . . Miscellaneous . | . . . . . . Route ------- -11/Scrapyard -10/Materials -10/Mines -9/Materials -9/Mines -8/Materials History --------- Turn | Location | Event 6 | -11/Scrapyard | Discovered new exit (range 16) 94 | -11/Scrapyard | Entered Materials 269 | -10/Materials | Discovered new exit (range 15) 288 | -10/Materials | Entered Mines 316 | -10/Mines | Learned Materials stockpile data 317 | -10/Mines | Build established: Mutant 333 | -10/Mines | Discovered new exit (range 5) 358 | -10/Mines | Core integrity fell below 50% 361 | -10/Mines | Entered Materials 361 | -9/Materials | Evolved 2 slots: Propulsion x2 391 | -9/Materials | Lost 4 parts (1p2n1w) 396 | -9/Materials | Discovered new exit (range 14) 405 | -9/Materials | Entered Mines 411 | -9/Mines | Met a Derelict bent on vengeance 439 | -9/Mines | Learned Materials emergency access door positions 458 | -9/Mines | Discovered new exit (range 8) 467 | -9/Mines | Entered Materials 467 | -8/Materials | Evolved 2 slots: Utility x2 549 | -8/Materials | Garrison activated, responded to threat 604 | -8/Materials | Lost 4 parts (1p2n1w) 607 | -8/Materials | Core integrity fell below 50% 672 | -8/Materials | Core integrity fell below 20% 702 | -8/Materials | Destroyed by G-47 Trooper with Particle Gun Last Messages --------------- 00612_ U-05 Engineer lays Concrete. 00614_ U-05 Engineer builds a Wall. 00615_ Grenade Launcher destroyed. 00616_ The unstable cave ceiling collapses. 00617_ U-05 Engineer builds a Wall. 00617_ Acquired 2 matter. 00619_ U-05 Engineer lays Concrete. 00622_ U-05 Engineer builds a Wall. 00622_ U-05 Engineer lays Concrete. 00635_ U-05 Engineer builds a Wall. 00638_ K-01 Serf collects debris. 00652_ Acquired Shotgun. 00675_ System corrupted: Matter fused (-8). 00675_ Y-45 Defender destroyed. 00678_ Acquired 28 matter. 00687_ Sml. Storage Unit destroyed. 00691_ Critical hit (Burn: +37). 00694_ K-01 Serf collects debris. 00699_ Shotgun destroyed. 00699_ K-01 Serf collects debris. Map ----- +----------------------------------------------------+ | ?????????????????????????????????????????????????? | | ?????????????????????????????????????????????????? | | ?????????????????????????????????????????????????? | | ?????????????????????????????????????????????????? | | ?????????????????????????????????????????????????? | | ??????+??????????????????????????????????????????? | | ?????????????????????????????????????????????????? | | ?????????????????????????????????????????????????? | | ?????????????????????????????????????????????????? | | ?????????????????????????????????????????????????? | | ?????????????????????????????????????????????????? | | ???????????????????????????????????????????????#?? | | ?????????????????????????????????????????????? #?? | | ????????????????????????????????????????????? #?? | | ???????????????????????????????????????????? #?? | | ???????????????????????#######?????????????? #?? | | ??????????????????????? ???????????? #?? | | ??????????????????????? ######## #?? | | ??????????????????????? #?? | | ???????????????????????# ######+#### # #??? | | ???????????????????????# # # # #??? | | ???????????????????????# # ! ! #%#! ?? !#??? | | ???????????????????????# # =%##?????#??? | | ???????????????????????# #= !! #!##????????? | | ???????????????????????# # !! # ##????????? | | ?????????????????? ???# @ # !! # ##????????? | | ??????????????????? ??# g#! # #?????????? | | ??????????????????? ??# # / ?# #?######### | | ??????????????????? ??# ### ####??# #?# | | ??????????????????? ??#k #?#??????## #?# """ | | ??????????????######+### ########### ### """ "G" | | ??????????? ^g # """ " " | | ???????????! g g + """ | | ??????????? # | | ????????????""" """ """ g !! ###### | | ????????????""" """ """ a !! ## # # | | ????????" """ """ """g !! ## ###### | | ????????Y ### # # ##???? | | ????????" #! #???? | | ??????? *= # ##???? | | ??????? * # """ ####????? | | ???????# ###########+##### + """ #???????? | | ????????????????????# # # """ #???????? | | ????????????????????# |! # # !#???????? | | ????????????????????# |! # ########???????? | | ????????????????????# ! !! # #??????????? | | ????????????????????# # #??????????? | | ????????????????????# # #??????????? | | ????????????????????#! #########??????????? | | ????????????????????# ] ! #??????????????????? | +----------------------------------------------------+ Best States ------------- Heat Dissipation 31 Energy Generation 14 Energy Capacity 280 Matter Stores 269 Matter Capacity 300 Sight Range 16 Terrain Scan Density 10 Core Shielding 20 Evasion (%) 62 Item Schematics ----------------- None Robot Schematics ------------------ None Fabricated ------------ Nothing Alien Tech Used ----------------- None Achievements -------------- None Challenges ------------ None Game ------ Seed AuthchipCannonLink Manual? 0 Play Time 00:10:41 Cumulative 4.8 hours Start 2024.12.31 @ 17:04:30 End 2024.12.31 @ 17:12:39 Sessions 1 Manual Loads 0 Difficulty Rogue Special Mode None Game No. 13 Rogue 13 Adventurer 0 Explorer 0 Win Type - Total 0 Types 0/0/0/0/0/0/0/0/0 Lore% 2 Gallery% 11 Achievement% 12 Wizard Run 0 Options --------- Layout 0 ASCII 0 Keyboard 0 Movement Numpad Keybinds 0 Fullscreen 2 Font 18/Terminus Map View 76x50 Zoom Use 0% Tactical HUD 1 Map Filters NONE Filters NONE Steam 1 RUN: 06848da5-063c-4c80-9a0d-94156c53557a